Workbook

Sheet Introduktion
B2: SAMHÄLLSEKONOMISK KALKYLMODELL FÖR SYSSELSÄTTNINGSKRAV
B4: Introduktion
B6: Syftet med modellen är att ge offentliga organisationer ett underlag gällande de ekonomiska konsekvenserna vid användning av sysselsättningskrav i upphandlingar. Beräkningsmodellen gör det möjligt att fördela dessa konsekvenser för olika aktörer samt samlat för samhället. Modellen kan fungera som ett verktyg för beslutfattare inför beslut om sysselsättningskrav i upphandling. Den kan också fungera som ett dialogverktyg mellan upphandlare, leverantörer och övriga relevanta myndigheter. Modellen är en kalkylator som beräknar det samhällsekonomiska värdet av att en individ lämnar arbetslöshet för sysselsättning (anställning, lärlingsanställning eller praktik). Modellen beräknar det samhällsekonomiska värdet under tiden för sysselsättningskravet för olika målgrupper, fördelat för individ, kommun, myndigheter och samhället i stort. Modellen bygger på ett antagande om att individer som tar del av sysselsättningskravet hade fortsatt vara arbetslösa under tiden för sysselsättningskravet. Kalkylmodellen beräknar inte några dynamiska eller långsiktiga effekter såsom att individer får högre sannolikhet till framtida anställning till följd av att de får arbetslivserfarenhet via sysselsättningskrav. För en genomgång av effekter som kan uppstå vid sysselsättningskrav se exempelvis Konkurrensverket (2017). Med arbetslös åsyftas personer som är inskrivna på Arbetsförmedlingen och innefattar såväl öppet arbetslösa samt deltagare i etablerings- och arbetsmarknadspolitiska program. Att en individ går från arbetslöshet till sysselsättning medför ofta sociala effekter, såsom förbättrad hälsa, ökad känsla av sammanhang med mera. Intangibla effekter av detta slag inkluderas inte i denna modell eftersom de är svåra att uppskatta schablonmässigt men är ändock något som bör beaktas i samband med beslut om sysselsättningskrav. Modellen har tagits fram av Ramboll på uppdrag av ESF-projektet Sysselsättning genom offentlig upphandling och bygger på tidigare framtagna modellen; Delander och Månsson (2007) och Delander och Ekberg (2010). Målbilden har varit en modell med hög anpassningsgrad för att den ska kunna användas för olika typer av sysselsättningskrav (anställning, lärling, praktik) och för olika målgrupper (ålder, tid i arbetslöshet och om individen är nyanländ). Modellen togs fram under 2019 men har därefter uppdaterats med värden för år 2021.
B9: Modellen innehåller kostnader och intäkter fördelat för följande aktörer:
B10: Individ
B11: Kommun
B12: Region
B13: Stat
B14: Arbetsgivare
B21: 1. Val av anställningsform 2. Val av anställningsstöd och produktivitet | F21: 3. Val av målgrupp | J21: 4. Resultat

Sheet Antaganden
A2: ANTAGANDEN
B4: PARAMETER | D4: VÄRDE | F4: BESKRIVNING
B6: Upphandlande organisation | D6: Kommunal | F6: Här anges vilken aktör som den upphandlade organisationen tillhör. Används för att fördela kostnader kopplade till upphandlingen.
B8: Sysselsättningskravet
B10: Sysselsättningskrav | D10: Praktik | F10: Här anges vilken typ av sysselsättningskrav som modellen ska utgå ifrån. Valet styr vilka parametrar som är relevanta att specificera (blåmarkerade).
B12: Antal månader | D12: 6 | F12: Antalet månader som sysselsättningskravet gäller.
B14: Antal tjänster | D14: 1 | F14: Antalet tjänster som sysselsättningskravet gäller.
B16: Omfattning av tjänst | D16: 1 | F16: Omfattningen sysselsättningskravet, om heltid anges 100%.
B18: Bruttolön per månad (heltid) | D18: 0 | F18: Här anges den uppskattade bruttolönen som modellen ska utgå från. Bruttolönen påverkar kostnaden för arbetsgivare och intäkter för individ och det offentliga.
B20: Anställningsstöd | F20: Här anges om och i så fall vilket anställningsstöd som ska inkluderas i modellberäkningarna. | H20: Relevant vid anställning/lärling
B22: Produktionsfaktor (andel av bruttolön) | D22: 0 | F22: Här anges det relativa produktionsvärdet som ska användas i beräkningarna. Grundantagandet är att produktionsvärdet motsvarar den antagna lönen men produktionsvärdet går att justera. | H22: Relevant vid anställning
B24: Bruttolön per månad, handledare | D24: 30000 | F24: Här anges den antagna bruttolönen för handledare. Används i beräkningarna av kostnaden för handledning för lärlings- och praktikplatser. | H24: Relevant vid lärling/praktik
B26: Tid för handledning (andel av heltidstjänst) | D26: 0.1 | F26: Här anges den uppskattade tidsåtgången för handledning. Används i beräkningarna av kostnaden för handledning för lärlings- och praktikplatser och uttrycks som andel av heltidstjänst.
B28: Administrationskostnad (upphandling m.m.) | D28: 10000 | F28: Här ska arbetsgivarens administrationskostnad för upphandlingen med sysselsättningskrav anges. Observera att det är den ytterligare kostnaden till följd av att ett sysselsättningskrav ställs som ska anges. | H28: Relevant för arbetsgivare
B30: Upphandlingskostnad | D30: 10000 | F30: Här ska upphandlade organisationens administrationskostnad för sysselsättningskrav anges. Observera att det är den ytterligare kostnaden till följd av att ett sysselsättningskrav anställs som ska anges. | H30: Relevant för arbetsgivare
B32: Produktionsvärde per månad (praktik) | D32: 8000 | F32: Här anges produktionsvärdet i de fall sysselsättningen är oavlönad (praktikanställning). Produktionsvärde ska uppskattas utifrån motsvarande månadslön (brutto). | H32: Relavant för upphandlande organisation
B34: Bonus | D34: 0 | F34: Här anges storleken på eventuell bonus från upphandlande organisation till arbetsgivare vid uppfyllnad av sysselsättningskravet.
B36: Målgrupp
B38: Ålder | D38: 20-23 | F38: Här anges vilken åldersgrupp som är aktuell för målgruppen. Ålder påverkar typ och storlek på ersättning samt arbetsgivaravgift (20-23 år).
B40: Tid i arbetslöshet | D40: 6-11 mån | F40: Här anges antalet månader som personer i målgruppen varit arbetslösa. Det påverkar storleken och möjligheten till ersättning.
B42: Nyanländ | F42: Här anges huruvida målgruppen för sysselsättningskravet är nyanlände eller inte. Nyanlända antas i modellen ha rätt till etableringsersättning.
B44: A-kassa | F44: Här anges huruvida målgruppen bedöms ha rätt till ersättning från A-kassa eller inte. Ska endast anges om målgruppen uppfyller kriterierna för A-kassa.
B46: Bostadsbidrag | D46: Ja | F46: Här anges huruvida målgruppen bedöms ha rätt till bostadsbidrag från Försäkringskassan eller inte.

Sheet Resultat
B2: RESULTAT
I4: =TODAY() -> 2021-02-12
B5: BERÄKNINGSVÄRDEN
B7: Upphandlande organisation | C7: =IF(Antaganden!D6=0,"-",Antaganden!D6) -> Kommunal | D7: Ålder | E7: =IF(Antaganden!D38=0,"-",Antaganden!D38) -> 20-23 | F7: Bruttolön (handledare) | G7: =IF(Antaganden!D24=0,"-",Antaganden!D24) -> 30000
B8: Sysselsättningskrav | C8: =IF(Antaganden!D10=0,"-",Antaganden!D10) -> Praktik | D8: Tid i arbetslöshet | E8: =IF(Antaganden!D40=0,"-",Antaganden!D40) -> 6-11 mån | F8: Tid för handledning | G8: =IF(Antaganden!D26=0,"-",Antaganden!D26) -> 0.1
B9: Antal månader | C9: =IF(Antaganden!D12=0,"-",Antaganden!D12) -> 6 | D9: Nyanländ | E9: =IF(Antaganden!D42=0,"-",Antaganden!D42) -> - | F9: Administrationskostnad (arbetsgivare) | G9: =IF(Antaganden!D28=0,"-",Antaganden!D28) -> 10000
B10: Antal tjänster | C10: =IF(Antaganden!D14=0,"-",Antaganden!D14) -> 1 | D10: A-kassa | E10: =IF(Antaganden!D44=0,"-",Antaganden!D44) -> - | F10: Upphandlingskostnad | G10: =IF(Antaganden!D30=0,"-",Antaganden!D30) -> 10000
B11: Omfattning av tjänst | C11: =IF(Antaganden!D16=0,"-",Antaganden!D16) -> 1 | D11: Bostadsbidrag | E11: =IF(Antaganden!D46=0,"-",Antaganden!D46) -> Ja | F11: Bonus | G11: =IF(Antaganden!D34=0,"-",Antaganden!D34) -> -
B12: Bruttolön per månad | C12: =IF(Antaganden!D18=0,"-",Antaganden!D18) -> -
B13: Anställningsstöd | C13: =IF(Antaganden!D20=0,"-",Antaganden!D20) -> -
B14: Produktionsfaktor | C14: =IF(OR(Antaganden!D10="Anställning",Antaganden!D10="Lärling"),Antaganden!D22,"-") -> -
B15: Produktionsvärde (praktik) | C15: =IF(Antaganden!D10="Praktik",Antaganden!D32,"-") -> 8000
B18: RESULTAT
B26: Aktör | C26: Totalt | D26: Per individ
B27: Individ | C27: =D61 -> 0 | D27: =IFERROR(C27/Antaganden!$D$14,0) -> 0
B28: Kommun | C28: =H61 -> -10 | D28: =IFERROR(C28/Antaganden!$D$14,0) -> -10
B29: Region | C29: =G61 -> 0 | D29: =IFERROR(C29/Antaganden!$D$14,0) -> 0
B30: Stat | C30: =F61 -> -10.9296 | D30: =IFERROR(C30/Antaganden!$D$14,0) -> -10.9296
B31: Arbetsgivare | C31: =I61 -> 34.793584 | D31: =IFERROR(C31/Antaganden!$D$14,0) -> 34.793584
B32: Samhället | C32: =SUM(C27:C31) -> 13.863984 | D32: =SUM(D27:D31) -> 13.863984
B39: Beskrivning | C39: I figur och tabell ovan framgår förändringen till följd av att en individ (och total) får anställning via sysselsättningskrav uppdelat på aktör.
C43: Summa 2, 3, 7 | E43: Summa 4-6
C44: (1) | D44: (2) | E44: (3) | F44: (4) | G44: (5) | H44: (6) | I44: (7)
C45: Samhället | D45: Individ | E45: Netto offentlig sektor | F45: Stat | G45: Region | H45: Kommun | I45: Arbetsgivare
B46: A
B47: 1. Ökad produktion av varor och tjänster | C47: =SUM(D47,E47,I47) -> 58.1504 | D47: =Modell!F8*(Antaganden!D12*Antaganden!D14*Antaganden!D16)/1000 -> 0 | E47: =SUM(F47:H47) -> 8.8704 | F47: =Modell!H8*(Antaganden!D12*Antaganden!D14*Antaganden!D16)/1000 -> 8.8704 | G47: =Modell!I8*(Antaganden!D12*Antaganden!D14*Antaganden!D16)/1000 -> 0 | H47: =Modell!J8*(Antaganden!D12*Antaganden!D14*Antaganden!D16)/1000 -> 0 | I47: =Modell!K8*(Antaganden!D12*Antaganden!D14*Antaganden!D16)/1000 -> 49.28
B48: 2. Ökad inbetalning av skatter och avgifter | C48: =SUM(D48,E48,I48) -> 0 | D48: =SUM(Modell!F10,Modell!F11,Modell!F12)*(Antaganden!D12*Antaganden!D14*Antaganden!D16)/1000 -> 0 | E48: =SUM(F48:H48) -> 0 | F48: =SUM(Modell!H10,Modell!H11,Modell!H12)*(Antaganden!D12*Antaganden!D14*Antaganden!D16)/1000 -> 0 | G48: =SUM(Modell!I10,Modell!I11,Modell!I12)*(Antaganden!D12*Antaganden!D14*Antaganden!D16)/1000 -> 0 | H48: =SUM(Modell!J10,Modell!J11,Modell!J12)*(Antaganden!D12*Antaganden!D14*Antaganden!D16)/1000 -> 0
B50: B
B51: Minskade utbetalningar av transfereringar | C51: =SUM(D51,E51,I51) -> 0 | D51: =Modell!F14*(Antaganden!D12*Antaganden!D14*Antaganden!D16)/1000 -> 0 | E51: =SUM(F51:H51) -> 0 | F51: =Modell!H14*(Antaganden!D12*Antaganden!D14*Antaganden!D16)/1000 -> 0 | H51: =Modell!J14*(Antaganden!D12*Antaganden!D14*Antaganden!D16)/1000 -> 0
B53: C
B54: 1. Kostnad för sysselsättningskrav | C54: =SUM(D54,E54,I54) -> -44.286416 | E54: =SUM(F54:H54) -> -10 | F54: =Modell!H19*(Antaganden!D12)/1000 -> 0 | G54: =Modell!I19*(Antaganden!D12)/1000 -> 0 | H54: =Modell!J19*(Antaganden!D12)/1000 -> -10 | I54: =Modell!K19*(Antaganden!D12)/1000 -> -34.286416
B55: 2. Arbetsmarknadsstöd | C55: =SUM(D55,E55,I55) -> 0 | E55: =SUM(F55:H55) -> -19.8 | F55: =Modell!H20*(Antaganden!D12*Antaganden!D14*Antaganden!D16)/1000 -> -19.8 | G55: =Modell!I20*(Antaganden!D12*Antaganden!D14*Antaganden!D16)/1000 -> 0 | H55: =Modell!J20*(Antaganden!D12*Antaganden!D14*Antaganden!D16)/1000 -> 0 | I55: =Modell!K20*(Antaganden!D12*Antaganden!D14*Antaganden!D16)/1000 -> 19.8
B57: D
B58: Minskad inbetalning av inkomstskatt på skattepliktiga transfereringar | C58: =SUM(D58,E58,I58) -> 0 | D58: =Modell!F22*(Antaganden!D12*Antaganden!D14*Antaganden!D16)/1000 -> 0 | E58: =SUM(F58:H58) -> 0 | F58: =Modell!H22*(Antaganden!D12*Antaganden!D14*Antaganden!D16)/1000 -> 0 | G58: =Modell!I22*(Antaganden!D12*Antaganden!D14*Antaganden!D16)/1000 -> 0 | H58: =Modell!J22*(Antaganden!D12*Antaganden!D14*Antaganden!D16)/1000 -> 0 | I58: =Modell!K22*(Antaganden!D12*Antaganden!D14*Antaganden!D16)/1000 -> 0
B60: A-D
B61: Summa | C61: =SUM(D61,E61,I61) -> 13.863984 | D61: =SUM(D58,D55,D51,D54,D48,D47) -> 0 | E61: =SUM(F61:H61) -> -20.9296 | F61: =SUM(F58,F55,F51,F54,F48,F47) -> -10.9296 | G61: =SUM(G58,G55,G51,G54,G48,G47) -> 0 | H61: =SUM(H58,H55,H51,H54,H48,H47) -> -10 | I61: =SUM(I58,I55,I51,I54,I48,I47) -> 34.793584

Sheet Detaljerade resultat
B2: DETALJERADE RESULTAT
G4: =TODAY() -> 2021-02-12
B5: BERÄKNINGSVÄRDEN
B7: Upphandlande organisation | C7: =IF(Antaganden!D6=0,"-",Antaganden!D6) -> Kommunal | D7: Ålder | E7: =IF(Antaganden!D38=0,"-",Antaganden!D38) -> 20-23 | F7: Bruttolön (handledare) | G7: =Antaganden!D24 -> 30000
B8: Sysselsättningskrav | C8: =IF(Antaganden!D10=0,"-",Antaganden!D10) -> Praktik | D8: Tid i arbetslöshet | E8: =IF(Antaganden!D40=0,"-",Antaganden!D40) -> 6-11 mån | F8: Tid för handledning | G8: =Antaganden!D26 -> 0.1
B9: Antal månader | C9: =Antaganden!D12 -> 6 | D9: Nyanländ | E9: =IF(Antaganden!D42=0,"-",Antaganden!D42) -> - | F9: Administrationskostnad (arbetsgivare) | G9: =Antaganden!D28 -> 10000
B10: Antal tjänster | C10: =Antaganden!D16*Antaganden!D14 -> 1 | D10: A-kassa | E10: =IF(Antaganden!D44=0,"-",Antaganden!D44) -> - | F10: Upphandlingskostnad | G10: =Antaganden!D30 -> 10000
B11: Omfattning av tjänst | C11: =IF(Antaganden!D16=0,"-",Antaganden!D16) -> 1 | D11: Bostadsbidrag | E11: =IF(Antaganden!D46=0,"-",Antaganden!D46) -> Ja | F11: Bonus | G11: =IF(Antaganden!D36=0,"-",Antaganden!D36) -> -
B12: Bruttolön per månad | C12: =IF(Antaganden!D18=0,"-",Antaganden!D18) -> -
B13: Anställningsstöd | C13: =IF(Antaganden!D20=0,"-",Antaganden!D20) -> -
B14: Produktionsfaktor | C14: =IF(OR(Antaganden!D10="Anställning",Antaganden!D10="Lärling"),Antaganden!D22,"-") -> -
B15: Produktionsvärde (praktik) | C15: =IF(Antaganden!D10="Praktik",Antaganden!D32,"-") -> 8000
B17: Beskrivning: | C17: I denna flik redovisas detaljerade resultat för; individen, det offentliga och arbetsgivare. Intäkter och kostnader till följd av sysselsättningskravet anges för en individ per månad och uttrycks i svenska kronor.
B19: RESULTAT PER INDIVID/MÅNAD
B20: Intäkter/Kostnader per individ när denne är sysselsatt genom sysselsättningskrav
E26: Lön efter skatt | F26: =Modell!AJ62 -> 0
B33: Beskrivning | C33: I figuren ovan framgår den enskildes lön efter skatt till följd av att de fått sysselsättning via sysselsättningskrav.
B35: Transfereringar per månad per individ innan sysselsättning
E40: Transfereringar innan skatt | F40: =Modell!AN79 -> 10400
E41: Skatt på transfereringar | F41: =Modell!AN97-Modell!AN79 -> 0
E42: Transfereringar efter skatt | F42: =Modell!AN97 -> 10400
B49: Beskrivning | C49: I figuren ovan framgår den enskildes transfereringar innan den får sysselsättning via sysselsättningskrav.
B51: Förändring per månad för individen när denna går från arbetslöshet till sysselsättning
E57: Förändring per månad | F57: =Modell!F23 -> 0
B64: Beskrivning | C64: I figuren ovan framgår den enskildes ekonomiska förändring till följd av att denne fått anställning via sysselsättningskrav.
C65: Boxar till höger om mittlinjen är intäkter och de till vänster beskriver kostnader till följd av sysselsättningskravet.
B68: RESULTAT FÖR DET OFFENTLIGA/MÅNAD
B69: Förändring för det offentliga när en individ går från arbetslöshet till sysselsättning
E75: Förändring per månad | F75: =SUM(Modell!AC78:AE78) -> -3488.266667
B82: Beskrivning | C82: I figuren ovan framgår det offentligas ekonomiska förändring till följd av sysselsättningskravet.
C83: Boxar till höger om mittlinjen är intäkter och de till vänster beskriver kostnader till följd av sysselsättningskravet.
B86: RESULTAT FÖR ARBETSGIVARE/MÅNAD
B87: Förändring för arbetsgivare när en individ går från arbetslöshet till sysselsättning
E93: Förändring per månad | F93: =Modell!S47 -> 5798.930667
B100: Beskrivning | C100: I figuren ovan framgår arbetsgivares ekonomiska förändring till följd av sysselsättningskravet.

Sheet Beräkningsblad-->

Sheet Modell
G1: Arbete
A3: Organisation | B3: =Antaganden!D6 -> Kommunal | D3: Intäkts- och kostnadsposter
E4: 1 | F4: 2 | G4: 3 | H4: 4 | I4: 5 | J4: 6 | K4: 7
A5: Sysselsättningskrav | B5: =Antaganden!D10 -> Praktik | E5: Samhället | F5: Individer | G5: Netto (offentlig sektor) | H5: Stat | I5: Region | J5: Kommun | K5: Arbetsgivare | N5: Upphandlarkostnad | Q5: Arbetsgivarkostnad (övrigt) | T5: Arbetsgivarstöd | W5: Lönekostnader/Intäkter Praktik | AB5: Lönekostnader/Intäkter | AE5: Lönekostnader/Intäkter (handledare) | AI5: Fördelning av inkomst mellan aktörer | AM5: Transfereringar innan | AP5: Transfereringar efter
A6: Bruttolön per månad (heltid) | B6: =Antaganden!D18 -> 0 | D6: A | E6: Summa 2-3, 7 | G6: Summa 4-6
D7: Produktionstillskott | N7: Administration (upphandling m.m.) | O7: =B30 -> 10000 | T7: Anställning | W7: Antagen Bruttolön/månad | X7: =IF(B5="Praktik",B27,0) -> 8000 | AB7: Antagen Bruttolön/månad | AC7: =IF(OR(B5="Anställning",B5="Lärling"),(B6*B15),0) -> 0 | AE7: Antagen Bruttolön/månad | AF7: =B24 -> 30000 | AI7: Antagen Bruttolön/månad | AJ7: =IF(OR(B5="Anställning",B5="Lärling"),(B6*B15),0) -> 0 | AM7: Antagen bruttolön/månad | AN7: =IF(OR(B5="Anställning",B5="Lärling"),(B6*B15),IF(B5="Praktik",20000,0)) -> 20000 | AP7: Antagen bruttolön/månad | AQ7: =IF(OR(B5="Anställning",B5="Lärling"),(B6*B15),IF(B5="Praktik",20000,0)) -> 20000
D8: 1. Ökad produktion av varor och tjänster | E8: =SUM(F8,G8,K8) -> 9691.733333 | F8: =AC20 -> 0 | G8: =SUM(H8:J8) -> 1478.4 | H8: =--(IF(B5="Anställning",(0.18*AC20),IF(B5="Lärling",(AC24-AC20),IF(B5="Praktik",(X24-X20))))) -> 1478.4 | K8: =--IF(B5="Anställning",(-1)*AC20*(1-B25),IF(B5="Lärling",(-1)*AC20*(1-B25),IF(B5="Praktik",X20))) -> 8213.333333 | N8: Adm. Kostnad per månad & person | O8: =IFERROR((-1)*O7/(B16*B17),0) -> -1666.666667 | Q8: Handledning | R8: =(-1)*AF16*B26 -> -4047.736 | AM8: Norm | AN8: =IF(Antaganden!D10="",0,10400) -> 10400 | AP8: Norm | AQ8: =IF(IF(Antaganden!D10="",0,10400)-AJ28>0,IF(Antaganden!D10="",0,10400)-AJ28,0) -> 10400
A9: Ålder (20-23, 24-25, 26-65) | B9: =Antaganden!D38 -> 20-23 | D9: 2. Ökad inbetalning av skatt: | Q9: Administration (upphandling m.m.) | R9: =IFERROR((-1)*B29/(B16*B17),0) -> -1666.666667 | T9: Nystartsjobb | U9: =IF(AND(B5="Anställning",B19="Ja"),IF(B11="Ja",IF(((AC13/12)*'Anställning med ersättning'!G5)<'Anställning med ersättning'!F5,((AC13/12)*'Anställning med ersättning'!G5),'Anställning med ersättning'!F5),IF(AND(B9="26-65",B10="12-23 mån",B11="Nej"),IF(((AC13/12)*'Anställning med ersättning'!G12)<'Anställning med ersättning'!F12,((AC13/12)*'Anställning med ersättning'!G12),'Anställning med ersättning'!F12),IF(AND(B9="26-65",B10="24-35 mån",B11="Nej"),IF(((AC13/12)*'Anställning med ersättning'!G13)<'Anställning med ersättning'!F13,((AC13/12)*'Anställning med ersättning'!G13),'Anställning med ersättning'!F13),IF(AND(B9="26-65",B10="36- mån",B11="Nej"),IF(((AC13/12)*'Anställning med ersättning'!G14)<'Anställning med ersättning'!F14,((AC13/12)*'Anställning med ersättning'!G14),'Anställning med ersättning'!F14),IF(AND(B9="20-25",OR(B10="6-11 mån",B10="12-23 mån"),B11="Nej"),IF(((AC13/12)*'Anställning med ersättning'!G9)<'Anställning med ersättning'!F9,(AC13/12)*'Anställning med ersättning'!G9,'Anställning med ersättning'!F9),IF(AND(B9="20-25",B10="24-35 mån",B11="Nej"),IF(((AC13/12)*'Anställning med ersättning'!G10)<'Anställning med ersättning'!F10,((AC13/12)*'Anställning med ersättning'!G10),'Anställning med ersättning'!F10),IF(AND(B9="20-25",B10="36- mån",B11="Nej"),IF(((AC13/12)*'Anställning med ersättning'!G11)<'Anställning med ersättning'!F11,((AC13/12)*'Anställning med ersättning'!G11),'Anställning med ersättning'!F11),0))))))),0)*(-1) -> 0 | AI9: Beräkning av avgifter baserat på statsskuld.se | AM9: Etableringsersättning | AN9: =IF(AND($B$11="Ja",B12="Nej"),$AN$42,0) -> 0 | AP9: Etableringsersättning | AQ9: =IF(($AQ$8-$AQ$13)>AN9,AN9,($AQ$8-$AQ$13)) -> 0
A10: Tid i arbetslöshet (<6 mån, 6-11 mån, 12-23 mån, 24- mån) | B10: =Antaganden!D40 -> 6-11 mån | D10: a. Inkomstskatt | E10: =SUM(F10,G10,K10) -> 0 | F10: =SUM(AJ16,AJ17,AJ19,AJ20,AJ21)*(-1) -> 0 | G10: =SUM(H10:J10) -> 0 | H10: =SUM(AJ21) -> 0 | I10: =SUM(AJ17) -> 0 | J10: =SUM(AJ16) -> 0 | K10: 0 | N10: Bonus | O10: =B31 -> 0 | T10: Introduktionsjobb | U10: =IF(Antaganden!D10="Anställning",(-1)*(IF(B20="Ja",IF((B6*B15)>20000,'Anställning med ersättning'!L3,'Anställning med ersättning'!K3*Modell!AC16))),"") ->  | W10: Arbetsgivares lönekostnader från verksamt.se | AB10: Arbetsgivares lönekostnader från verksamt.se | AE10: Arbetsgivares lönekostnader från verksamt.se | AI10: Månadslön + Arbetsgivaravgift: | AJ10: =(AC11+AC12)/12+(SUM(AC13:AC14)/12) -> 0 | AM10: A-kassa | AN10: =IFERROR(IF($B$12="Ja",IF(AN7*(1/B15)*$AN$45<$AN$48,AN7*(1/B15)*$AN$45,$AN$48),0),0) -> 0 | AP10: A-kassa | AQ10: =IFERROR(IF($B$12="Ja",IF(AQ7*(1/B15)*$AN$45<$AN$48,(1-B15)*AQ7*(1/B15)*$AN$45,(1-B15)*$AN$48),0),0) -> 0
A11: Nyanländ (Ja/Nej) | B11: =IF(Antaganden!D42="Ja","Ja","Nej") -> Nej | D11: b. Lagstadgade arbetsgivaravgifter (ink. försäkringar) | E11: =SUM(F11,G11,K11) -> 0 | F11: =-1*SUM(AC13,AC14)/12 -> 0 | G11: =SUM(H11:J11) -> 0 | H11: =SUM(AC13,AC14)/12 -> 0 | I11: 0 | J11: 0 | K11: 0 | N11: Bonus per månad & person | O11: =IFERROR((-1)*O10/(B16),0) -> 0 | Q11: Kostnad | R11: =SUM(R7:R10) -> -5714.402667 | T11: Yrkesintroduktion | U11: =IF(Antaganden!D10="Anställning",IF(((IF(B21="Ja",IF(B6*B15>20000,'Anställning med ersättning'!U3,(AC13/12)*'Anställning med ersättning'!T3)))+B15*'Anställning med ersättning'!W3)=2415,0,-1*((IF(B21="Ja",IF(B6*B15>20000,'Anställning med ersättning'!U3,(AC13/12)*'Anställning med ersättning'!T3)))+B15*'Anställning med ersättning'!W3)),"") ->  | W11: Lön/år | X11: =X7*11 -> 88000 | AB11: Lön/år | AC11: =AC7*11 -> 0 | AE11: Lön/år | AF11: =AF7*11 -> 330000 | AI11: Månadslön: | AJ11: =(SUM(AC11,AC12)/12) -> 0 | AM11: Aktivitetsstöd | AN11: =IF($B$11="Nej",(IF(AND($B$12="Nej",$B$9="26-65"),$AN$57,0)),0) -> 0 | AP11: Aktivitetsstöd | AQ11: =IF(($AQ$8-$AQ$13)>AN11,AN11,($AQ$8-$AQ$13)) -> 0
A12: A-kassa (Ja, Nej) | B12: =IF(Antaganden!D44="Ja","Ja","Nej") -> Nej | D12: c. Övriga skatter och avgifter | E12: =SUM(F12,G12,K12) -> 0 | F12: =-1*SUM(AJ18,AJ26) -> 0 | G12: =SUM(H12:J12) -> 0 | H12: =SUM(AJ18,AJ26) -> 0 | I12: 0 | J12: 0 | T12: Övriga stöd | W12: Semesterlön/år | X12: =(X7*11)*0.12 -> 10560 | AB12: Semesterlön/år | AC12: =(AC7*11)*0.12 -> 0 | AE12: Semesterlön/år | AF12: =(AF7*11)*0.12 -> 39600 | AI12: Grundavdrag: | AJ12: =-1*LOOKUP((AJ11*12),Skatter!B:B,Skatter!D:D)/12 -> 0 | AM12: Utvecklingsersättning | AN12: =IF($B$11="Nej",(IF(AND($B$12="Nej",OR($B$9="20-23",$B$9="24-25")),$AN$59,0)),0) -> 3652 | AP12: Utvecklingsersättning | AQ12: =IF(($AQ$8-$AQ$13)>AN12,AN12,($AQ$8-$AQ$13)) -> 3652
A13: Bostadsbidrag (Ja, Nej) | B13: =IF(Antaganden!D46="Ja","Ja","Nej") -> Ja | D13: B | N13: Kommun | O13: =IF(B3="Kommunal",SUM(O8,O11),0) -> -1666.666667 | W13: Arbetsgivaravgifter/år | X13: =X27*SUM(X11:X12) -> 0 | AB13: Arbetsgivaravgifter/år | AC13: =IF(B9="20-23",AC27,AC26) -> 0 | AE13: Arbetsgivaravgifter/år | AF13: =AC28*SUM(AF11:AF12) -> 116128.32 | AI13: Beskattningsbar lön: | AJ13: =IFERROR(SUM(AJ11:AJ12),0) -> 0 | AM13: Bostadsbidrag | AN13: =IF($B$13="Nej",0,$AN$61) -> 857 | AP13: Bostadsbidrag | AQ13: =IF($AQ$8>AN13,AN13,$AQ$8) -> 857
A14: Bruttolön per månad (heltid) | D14: Minskade utbetalningar av transfereringar | E14: =SUM(F14:G14) -> 0 | F14: =(-1*(AN17-AQ17)) -> 0 | G14: =SUM(H14:J14) -> 0 | H14: =SUM((AN10-AQ10),(AN11-AQ11),(AN12-AQ12),(AN13-AQ13),(AN9-AQ9),0) -> 0 | J14: =AN14-AQ14 -> 0 | K14: 0 | N14: Stat | O14: =IF(B3="Statlig",SUM(O8,O11),0) -> 0 | T14: Lärling | W14: Totalt Försäkringar enligt kollektivavtal / år | X14: 0 | AB14: Totalt Försäkringar enligt kollektivavtal / år | AC14: 0 | AE14: Totalt Försäkringar enligt kollektivavtal / år | AF14: 0 | AM14: Försörjningsstöd | AN14: =IF(AN13+AN9+AN12+AN15-AN30>AN8,0,AN8-(AN13+AN9+AN12+AN15-AN30)) -> 5891 | AP14: Försörjningsstöd | AQ14: =IF(AQ13+AQ9+AQ12+AQ15-AQ30>AQ8,0,AQ8-(AQ13+AQ9+AQ12+AQ15-AQ30)) -> 5891
A15: Andel av heltid | B15: =Antaganden!D16 -> 1 | D15: C | N15: Region | O15: =IF(B3="Regional",SUM(O8,O11),0) -> 0 | T15: Lärlingsersättning | U15: =IF(Antaganden!D10="Lärling",-(Modell!U28),"") ->  | W15: Totalt lön och skatt/år | X15: =SUM(X11:X14) -> 98560 | AB15: Totalt lön och skatt/år | AC15: =SUM(AC11:AC14) -> 0 | AE15: Totalt lön och skatt/år | AF15: =SUM(AF11:AF14) -> 485728.32 | AI15: Skatter | AM15: Beskattningsbara transfereringar | AN15: =SUM(AN10,AN11) -> 0 | AP15: Beskattningsbara transfereringar | AQ15: =SUM(AQ10,AQ11) -> 0
A16: Antal månader | B16: =Antaganden!D12 -> 6 | D16: 1. Ökat välbefinnande för deltagare | W16: Genomsnittlig kostnad/månad | X16: =X15/12 -> 8213.333333 | AB16: Genomsnittlig kostnad/månad | AC16: =AC15/12 -> 0 | AE16: Genomsnittlig kostnad/månad | AF16: =AF15/12 -> 40477.36 | AI16: Kommunalskatt | AJ16: =AJ13*AJ31 -> 0 | AM16: Skattefria transfereringar | AN16: =SUM(AN9,AN12,AN13,AN14) -> 10400 | AP16: Skattefria transfereringar | AQ16: =SUM(AQ9,AQ12,AQ13,AQ14) -> 10400
A17: Antal personer | B17: =Antaganden!D14 -> 1 | D17: 2. Ökat välbefinnande för övriga | T17: Praktik | AI17: Regionsskattesats: | AJ17: =AJ13*AJ32 -> 0 | AM17: Totala transfereringar | AN17: =SUM(AN15,AN16) -> 10400 | AP17: Totala transfereringar | AQ17: =SUM(AQ15,AQ16) -> 10400
A18: Anställningsstöd | D18: D | W18: Till Faktorpris | AB18: Till Faktorpris | AE18: Till Faktorpris | AI18: Public service-avgift | AJ18: =(IF(AJ13*12>AK33,AL33,AJ13*12*AJ33))/12 -> 0
A19: Nystartsjobb | B19: =IF(Antaganden!D20="Nystartsjobb","Ja","Nej") -> Nej | D19: Kostnad för sysselsättningskrav | E19: =SUM(F19,G19,K19) -> -7381.069333 | F19: 0 | G19: =SUM(H19:J19) -> -1666.666667 | H19: =O14 -> 0 | I19: =O15 -> 0 | J19: =O13 -> -1666.666667 | K19: =R11 -> -5714.402667 | T19: Praktikersättning | U19: =IF(Antaganden!D10="Praktik",-(Modell!U31),"") -> -3300 | W19: Totala uppskattade kostnader inkl försäkringar/år | X19: =X15 -> 98560 | AB19: Totala uppskattade kostnader inkl försäkringar/år | AC19: =AC15 -> 0 | AE19: Totala uppskattade kostnader inkl försäkringar/år | AF19: =AF15 -> 485728.32 | AI19: Statlig skatt: | AJ19: =(IF(AJ11*12>AK34,((AJ11*B15)*12-AK34)*AJ34,0))/12 -> 0 | AM19: Skatter | AP19: Skatter
A20: Introduktionsjobb | B20: =IF(Antaganden!D20="Introduktionsjobb","Ja","Nej") -> Nej | D20: Arbetsmarknadsstöd | E20: =SUM(F20,G20,K20) -> 0 | F20: 0 | G20: =SUM(H20:J20) -> -3300 | H20: =SUM(U21) -> -3300 | K20: =(U21*(-1))+((-1)*SUM(O11)) -> 3300 | W20: Totala uppskattade kostnader inkl försäkringar/månad | X20: =X19/12 -> 8213.333333 | AB20: Totala uppskattade kostnader inkl försäkringar/månad | AC20: =AC19/12 -> 0 | AE20: Totala uppskattade kostnader inkl försäkringar/månad | AF20: =AF19/12 -> 40477.36 | AI20: Värnskatt: | AM20: Kommunalskatt | AN20: =AN15*$AJ$31 -> 0 | AP20: Kommunalskatt | AQ20: =AQ15*$AJ$31 -> 0
A21: Yrkesintroduktion | B21: =IF(Antaganden!D20="Yrkesintroduktion","Ja","Nej") -> Nej | D21: E | T21: Arbetsgivarstöd | U21: =SUM(U7:U20) -> -3300 | AI21: Jobbskatteavdrag | AJ21: =IFERROR((-1*(INDEX(Skatter!G4:G143,MATCH(MAX(IF(Skatter!F4:F144<(AJ11*12),Skatter!F4:F144)),Skatter!F4:F143,0)))*AJ11),0) -> 0 | AM21: Regionsskattesats: | AN21: =AN15*$AJ$32 -> 0 | AP21: Regionsskattesats: | AQ21: =AQ15*$AJ$32 -> 0
A22: Övriga stöd | D22: Minskad inbetalning av skatt på skattepliktiga transfereringar | E22: =SUM(F22:G22) -> 0 | F22: =-1*G22 -> 0 | G22: =SUM(H22:J22) -> 0 | H22: =-1*SUM((AN22-AQ22),(AN28-AQ28),(AN25-AQ25)) -> 0 | I22: =-1*SUM(AN21-AQ21) -> 0 | J22: =-1*SUM(AN20-AQ20) -> 0 | W22: Till Marknadspris (antagen moms=0,18) | AB22: Till Marknadspris (antagen moms=0,18) | AI22: Total | AJ22: =SUM(AJ16:AJ21) -> 0 | AM22: Public service-avgift | AN22: =(IF(AN15*12>$AK$33,$AL$33,AN15*12*$AJ$33))/12 -> 0 | AP22: Public service-avgift | AQ22: =(IF(AQ15*12>$AK$33,$AL$33,AQ15*12*$AJ$33))/12 -> 0
A23: Praktik/lärling | D23: Summa | E23: =SUM(F23,G23,K23) -> 2310.664 | F23: =SUM(F8:F22) -> 0 | G23: =SUM(H23:J23) -> -3488.266667 | H23: =SUM(H8:H22) -> -1821.6 | I23: =SUM(I8:I22) -> 0 | J23: =SUM(J8:J22) -> -1666.666667 | K23: =SUM(K8:K22) -> 5798.930667 | W23: Totala uppskattade kostnader inkl försäkringar/år | X23: =X19*1.18 -> 116300.8 | AB23: Totala uppskattade kostnader inkl försäkringar/år | AC23: =AC19*1.18 -> 0 | AM23: Statlig skatt: | AN23: =(IF(AN15*12>$AK$34,(A($B$6*$B$15)*12-$AK$34)*$AJ$34,0))/12 -> 0 | AP23: Statlig skatt: | AQ23: =(IF(AQ15*12>$AK$34,(A($B$6*$B$15)*12-$AK$34)*$AJ$34,0))/12 -> 0
A24: Bruttolön per månad, handledare | B24: =Antaganden!D24 -> 30000 | W24: Totala uppskattade kostnader inkl försäkringar/månad | X24: =X20*1.18 -> 9691.733333 | AB24: Totala uppskattade kostnader inkl försäkringar/månad | AC24: =AC20*1.18 -> 0 | AI24: Avgifter | AM24: Värnskatt: | AP24: Värnskatt:
A25: Produktionstillskott (andel av lön) | B25: =Antaganden!D22 -> 0 | AI25: Begravningsavgift: | AJ25: =AJ13*AJ37 -> 0 | AM25: Jobbskatteavdrag | AN25: 0 | AP25: Jobbskatteavdrag | AQ25: 0
A26: Uppskattad kostnad för handledning och administration (andel av heltidstjänst) | B26: =Antaganden!D26 -> 0.1 | AB26: Arbetsgivaravgift | AC26: =AC28*SUM(AC11:AC12) -> 0 | AI26: Total avgift | AJ26: =SUM(AJ25) -> 0 | AM26: Total | AN26: =SUM(AN20:AN25) -> 0 | AP26: Total | AQ26: =SUM(AQ20:AQ25) -> 0
A27: Produktionstillskott (pengar) | B27: =Antaganden!D32 -> 8000 | T27: Stadsbidrag för lärling (per plats och år) | U27: 40000 | AB27: Arbetsgivaravgift unga | AC27: =IF((SUM(AC11:AC12)>308000),308000,SUM(AC11:AC12))*AC29+(IF(SUM(AC11:AC12)>308000,(SUM(AC11:AC12)-308000),0)*AC28) -> 0 | AM27: Avgifter | AP27: Avgifter
A28: Övrigt | L28: =U10 ->  | T28: Lärlingsbidrag per månad (10 månader termin) | U28: =U27/10 -> 4000 | AB28: Arbetsgivaravgift 2021 | AC28: 0.3142 | AI28: Nettolön=Bruttolön-Skatter-Avgifter | AJ28: =AJ11-AJ22-AJ26 -> 0 | AM28: Begravningsavgift: | AN28: =AN15*$AJ$37 -> 0 | AP28: Begravningsavgift: | AQ28: =AQ15*$AJ$37 -> 0
A29: Administrationskostnader (upphandling m.m.) arbetsgivare | B29: =Antaganden!D28 -> 10000 | AB29: Arbetsgivaravgift unga 2021 | AC29: 0.1973
A30: Upphandlingskostnad | B30: =Antaganden!D30 -> 10000 | T30: Ersättning för arbetsträning (praktik) per dag | U30: 150 | AB30: Källa: Skatteverket | AJ30: Skattesats | AM30: Totala skatter & avgifter | AN30: =SUM(AN26,AN28) -> 0 | AP30: Totala skatter & avgifter | AQ30: =SUM(AQ26,AQ28) -> 0
A31: Bonus | B31: =Antaganden!D34 -> 0 | T31: Praktikersättning per månad | U31: =U30*22 -> 3300 | AI31: Kommunalskatt* | AJ31: 0.2071 | AK31: Skiktgräns | AL31: Max
AI32: Regionsskattesats* | AJ32: 0.1156
AI33: Public service-avgift | AJ33: 0.01 | AK33: 132990 | AL33: 1329
AA34: SEK | AI34: Statlig skatt | AJ34: 0.2 | AK34: 523200 | AM34: Totala transfereringar efter skatt | AN34: =SUM(AN16,AN15-AN30) -> 10400 | AP34: Totala transfereringar efter skatt | AQ34: =SUM(AQ16,AQ15-AQ30) -> 10400
C35: äldre minsta | D35: =IF(AND(B9="26-65",B10="12-23 mån",B11="Nej"),IF(((AC13/12)*'Anställning med ersättning'!G12)<'Anställning med ersättning'!F12,((AC13/12)*'Anställning med ersättning'!G12),'Anställning med ersättning'!F12),IF(AND(B9="26-65",B10="24-35 mån",B11="Nej"),IF(((AC13/12)*'Anställning med ersättning'!G13)<'Anställning med ersättning'!F13,((AC13/12)*'Anställning med ersättning'!G13),'Anställning med ersättning'!F13),IF(AND(B9="26-65",B10="36- mån",B11="Nej"),IF(((AC13/12)*'Anställning med ersättning'!G14)<'Anställning med ersättning'!F14,((AC13/12)*'Anställning med ersättning'!G14),'Anställning med ersättning'!F14),IF(AND(B9="20-23",OR(B10="6-11 mån",B10="12-23 mån"),B11="Nej"),IF(((AC13/12)*'Anställning med ersättning'!G9)<'Anställning med ersättning'!F9,(AC13/12)*'Anställning med ersättning'!G9,'Anställning med ersättning'!F9),IF(AND(B9="20-23",B10="24-35 mån",B11="Nej"),IF(((AC13/12)*'Anställning med ersättning'!G10)<'Anställning med ersättning'!F10,((AC13/12)*'Anställning med ersättning'!G10),'Anställning med ersättning'!F10),IF(AND(B9="20-23",B10="36- mån",B11="Nej"),IF(((AC13/12)*'Anställning med ersättning'!G11)<'Anställning med ersättning'!F11,((AC13/12)*'Anställning med ersättning'!G11),'Anställning med ersättning'!F11),0)))))) -> 0 | E35: yngre minsta | F35: =IF(AND(B9="20-23",OR(B10="6-11 mån",B10="12-23 mån"),B11="Nej"),IF(((AC13/12)*'Anställning med ersättning'!G9)<'Anställning med ersättning'!F9,(AC13/12)*'Anställning med ersättning'!G9,'Anställning med ersättning'!F9),IF(AND(B9="20-23",B10="24-35 mån",B11="Nej"),IF(((AC13/12)*'Anställning med ersättning'!G10)<'Anställning med ersättning'!F10,((AC13/12)*'Anställning med ersättning'!G10),'Anställning med ersättning'!F10),IF(AND(B9="20-23",B10="36- mån",B11="Nej"),IF(((AC13/12)*'Anställning med ersättning'!G11)<'Anställning med ersättning'!F11,((AC13/12)*'Anställning med ersättning'!G11),'Anställning med ersättning'!F11),0))) -> 0 | AA35: ss | AB35: Lön | AC35: Semesterlön | AD35: Arbetsgivaravgift | AI35: Värnskatt
C36: äldre medel | D36: =IF(AND(B9="26-65",B10="24-35 mån",B11="Nej"),IF(((AC13/12)*'Anställning med ersättning'!G13)<'Anställning med ersättning'!F13,((AC13/12)*'Anställning med ersättning'!G13),'Anställning med ersättning'!F13),IF(AND(B9="26-65",B10="36- mån",B11="Nej"),IF(((AC13/12)*'Anställning med ersättning'!G14)<'Anställning med ersättning'!F14,((AC13/12)*'Anställning med ersättning'!G14),'Anställning med ersättning'!F14),IF(AND(B9="20-23",OR(B10="6-11 mån",B10="12-23 mån"),B11="Nej"),IF(((AC13/12)*'Anställning med ersättning'!G9)<'Anställning med ersättning'!F9,(AC13/12)*'Anställning med ersättning'!G9,'Anställning med ersättning'!F9),IF(AND(B9="20-23",B10="24-35 mån",B11="Nej"),IF(((AC13/12)*'Anställning med ersättning'!G10)<'Anställning med ersättning'!F10,((AC13/12)*'Anställning med ersättning'!G10),'Anställning med ersättning'!F10),IF(AND(B9="20-23",B10="36- mån",B11="Nej"),IF(((AC13/12)*'Anställning med ersättning'!G11)<'Anställning med ersättning'!F11,((AC13/12)*'Anställning med ersättning'!G11),'Anställning med ersättning'!F11),0))))) -> 0 | E36: äldre medel | F36: =IF(AND(B9="20-23",B10="24-35 mån",B11="Nej"),IF(((AC13/12)*'Anställning med ersättning'!G10)<'Anställning med ersättning'!F10,((AC13/12)*'Anställning med ersättning'!G10),'Anställning med ersättning'!F10),IF(AND(B9="20-23",B10="36- mån",B11="Nej"),IF(((AC13/12)*'Anställning med ersättning'!G11)<'Anställning med ersättning'!F11,((AC13/12)*'Anställning med ersättning'!G11),'Anställning med ersättning'!F11),0)) -> 0 | AB36: =AC11/12 -> 0 | AC36: =AC12/12 -> 0 | AD36: =AC13/12 -> 0 | AI36: Kyrkoavgift
C37: äldre max | D37: =IF(AND(B9="26-65",B10="36- mån",B11="Nej"),IF(((AC13/12)*'Anställning med ersättning'!G14)<'Anställning med ersättning'!F14,((AC13/12)*'Anställning med ersättning'!G14),'Anställning med ersättning'!F14),IF(AND(B9="20-23",OR(B10="6-11 mån",B10="12-23 mån"),B11="Nej"),IF(((AC13/12)*'Anställning med ersättning'!G9)<'Anställning med ersättning'!F9,(AC13/12)*'Anställning med ersättning'!G9,'Anställning med ersättning'!F9),IF(AND(B9="20-23",B10="24-35 mån",B11="Nej"),IF(((AC13/12)*'Anställning med ersättning'!G10)<'Anställning med ersättning'!F10,((AC13/12)*'Anställning med ersättning'!G10),'Anställning med ersättning'!F10),IF(AND(B9="20-23",B10="36- mån",B11="Nej"),IF(((AC13/12)*'Anställning med ersättning'!G11)<'Anställning med ersättning'!F11,((AC13/12)*'Anställning med ersättning'!G11),'Anställning med ersättning'!F11),0)))) -> 0 | E37: äldre max | F37: =IF(AND(B9="20-23",B10="36- mån",B11="Nej"),IF(((AC13/12)*'Anställning med ersättning'!G11)<'Anställning med ersättning'!F11,((AC13/12)*'Anställning med ersättning'!G11),'Anställning med ersättning'!F11),0) -> 0 | AB37: 500000 | AC37: 500000 | AD37: 500000 | AI37: Begravningsavgift* | AJ37: 0.00253
D38: =IF(AND(B5="Anställning",B19="Ja"),IF(B11="Ja",IF(((AC13/12)*'Anställning med ersättning'!G5)<'Anställning med ersättning'!F5,((AC13/12)*'Anställning med ersättning'!G5),'Anställning med ersättning'!F5),IF(AND(B9="26-65",B10="12-23 mån",B11="Nej"),IF(((AC13/12)*'Anställning med ersättning'!G12)<'Anställning med ersättning'!F12,((AC13/12)*'Anställning med ersättning'!G12),'Anställning med ersättning'!F12),IF(AND(B9="26-65",B10="24-35 mån",B11="Nej"),IF(((AC13/12)*'Anställning med ersättning'!G13)<'Anställning med ersättning'!F13,((AC13/12)*'Anställning med ersättning'!G13),'Anställning med ersättning'!F13),IF(AND(B9="26-65",B10="36- mån",B11="Nej"),IF(((AC13/12)*'Anställning med ersättning'!G14)<'Anställning med ersättning'!F14,((AC13/12)*'Anställning med ersättning'!G14),'Anställning med ersättning'!F14),IF(AND(B9="20-23",OR(B10="6-11 mån",B10="12-23 mån"),B11="Nej"),IF(((AC13/12)*'Anställning med ersättning'!G9)<'Anställning med ersättning'!F9,(AC13/12)*'Anställning med ersättning'!G9,'Anställning med ersättning'!F9),IF(AND(B9="20-23",B10="24-35 mån",B11="Nej"),IF(((AC13/12)*'Anställning med ersättning'!G10)<'Anställning med ersättning'!F10,((AC13/12)*'Anställning med ersättning'!G10),'Anställning med ersättning'!F10),IF(AND(B9="20-23",B10="36- mån",B11="Nej"),IF(((AC13/12)*'Anställning med ersättning'!G11)<'Anställning med ersättning'!F11,((AC13/12)*'Anställning med ersättning'!G11),'Anställning med ersättning'!F11),0))))))),0) -> 0 | E38: =IF(B11="Ja",IF(((AC13/12)*'Anställning med ersättning'!G5)<'Anställning med ersättning'!F5,((AC13/12)*'Anställning med ersättning'!G5),'Anställning med ersättning'!F5),IF(AND(B9="26-65",B10="12-23 mån",B11="Nej"),IF(((AC13/12)*'Anställning med ersättning'!G12)<'Anställning med ersättning'!F12,((AC13/12)*'Anställning med ersättning'!G12),'Anställning med ersättning'!F12),IF(AND(B9="26-65",B10="24-35 mån",B11="Nej"),IF(((AC13/12)*'Anställning med ersättning'!G13)<'Anställning med ersättning'!F13,((AC13/12)*'Anställning med ersättning'!G13),'Anställning med ersättning'!F13),IF(AND(B9="26-65",B10="36- mån",B11="Nej"),IF(((AC13/12)*'Anställning med ersättning'!G14)<'Anställning med ersättning'!F14,((AC13/12)*'Anställning med ersättning'!G14),'Anställning med ersättning'!F14),IF(AND(B9="20-23",OR(B10="6-11 mån",B10="12-23 mån"),B11="Nej"),IF(((AC13/12)*'Anställning med ersättning'!G9)<'Anställning med ersättning'!F9,(AC13/12)*'Anställning med ersättning'!G9,'Anställning med ersättning'!F9),IF(AND(B9="20-23",B10="24-35 mån",B11="Nej"),IF(((AC13/12)*'Anställning med ersättning'!G10)<'Anställning med ersättning'!F10,((AC13/12)*'Anställning med ersättning'!G10),'Anställning med ersättning'!F10),IF(AND(B9="20-23",B10="36- mån",B11="Nej"),IF(((AC13/12)*'Anställning med ersättning'!G11)<'Anställning med ersättning'!F11,((AC13/12)*'Anställning med ersättning'!G11),'Anställning med ersättning'!F11),0))))))) -> 0 | AI38: * Källa: SCB Medelskattesatsen är ett viktat medelvärde för samtliga kommuner där skatteunderlaget har använts som vägningstal.
AI39: Prisbasbelopp 2019 | AJ39: 46500
AB40: =AB15 -> Totalt lön och skatt/år | AC40: =AC15 -> 0 | AI40: Prisbasbelopp 2022 | AJ40: 47600
D41: 20-23 | R41: Lönekostnad | S41: =AC16*(-1) -> 0 | AI41: Lön | AJ41: SEK
D42: 24-25 | R42: Arbetsmarknadsstöd | S42: =(-1)*U21 -> 3300 | AI42: =AI7 -> Antagen Bruttolön/månad | AJ42: =AJ7 -> 0 | AM42: Nyanländ | AN42: 6468
D43: 26-65 | R43: Bonus | S43: =O11*(-1) -> 0 | AI43: =AI10 -> Månadslön + Arbetsgivaravgift: | AJ43: 0 | AM43: A-kassa (dag 1-100) | AN43: 0.8
R44: Produktionstillskott | S44: =IF(B5="Anställning",AC20*(B25),IF(B5="Lärling",AC20*(B25),IF(B5="Praktik",X20))) -> 8213.333333 | AI44: Månadslön: | AJ44: 0 | AM44: A-kassa (dag 101- | AN44: 0.7
R45: Administrationskostnad | S45: =R9 -> -1666.666667 | AI45: Grundavdrag: | AJ45: 0 | AM45: A-kassa | AN45: =IFERROR((AN43*AN51+AN44*AN52)/SUM(AN51:AN52),0) -> 0.7 | AO45: https://www.forsakringskassan.se/statistik/barn-familj/bostadsbidrag
R46: Handledning | S46: =R8 -> -4047.736 | AI46: Beskattningsbar lön: | AJ46: 0 | AM46: Maxgräns (dag 1-100) | AN46: =AN49*AP46 -> 26400 | AP46: 1200
R47: Totalt | S47: =SUM(S41:S46) -> 5798.930667 | AM47: Maxgräns (dag 101-) | AN47: =AN49*AP47 -> 22000 | AP47: 1000
AM48: Maxgräns (beräknad) | AN48: =IFERROR((AN46*AN51+AN47*AN52)/SUM(AN51:AN52),0) -> 22000
AM49: Antal arbetsdagar per månad | AN49: 22
AI50: Skatter
AJ51: SEK | AM51: Antal månader full A-kassa | AN51: =IF(IF(B16<=5-AN53,B16,5-AN53)>0,IF(B16<=5-AN53,B16,5-AN53),0) -> 0
AI52: =AI42 -> Antagen Bruttolön/månad | AJ52: =AJ42 -> 0 | AM52: Antal månader begränsad A-kassa | AN52: =IF(IF(B16<=14-AN53,B16,14-AN53)>0,IF(B16<=14-AN53,B16,14-AN53),0) -> 5
AI53: =AI16 -> Kommunalskatt | AJ53: =AJ16*-1 -> 0 | AM53: Tid innan sysselssätningskrav | AN53: =INDEX(AN64:AN67,MATCH(B10,AM64:AM67,0)) -> 9
AI54: =AI17 -> Regionsskattesats: | AJ54: =AJ17*-1 -> 0 | AM54: Max antal månader med A-kassa | AN54: =ROUND(300/AN49,0) -> 14
AI55: =AI18 -> Public service-avgift | AJ55: =AJ18*-1 -> 0 | AM55: Grundersättning (per månad) | AN55: =AN49*AP55 -> 11220 | AP55: 510
AI56: =AI19 -> Statlig skatt: | AJ56: =AJ19*-1 -> 0
AI57: =AI20 -> Värnskatt: | AJ57: =AJ20*-1 -> 0 | AM57: Aktivitetsstöd (per månad) | AN57: =223*AN49 -> 4906
Z58: =_xlfn.CONCAT(AA58,AB60,AF60) -> Kommunalskatt | AA58: Kommunalskatt | AI58: =AI21 -> Jobbskatteavdrag | AJ58: =AJ21*-1 -> 0
AA59: Regionsskattesats | AC59: Kommun | AD59: Region | AE59: Stat | AM59: Utvecklingsersättning (per månad) | AN59: =166*AN49 -> 3652
AA60: Avgifter | AB60: =IF(SUM(AC60:AE60)<>0,AA58,"") ->  | AC60: =SUM(AJ53,(AN86-AQ86))*(-1) -> 0
AA61: Indirekt skatt | AD61: =SUM(AJ54,(AN87-AQ87))*(-1) -> 0 | AI61: =AI22 -> Total | AJ61: =AJ22 -> 0 | AM61: Bostadsbidrag (genomsnitt per månad) | AN61: 857
AA62: Arbetsgivaravgift | AE62: =SUM(AJ55,(AN88-AQ88))*(-1)+AJ25-(AN95-AQ95) -> 0 | AI62: Nettolön | AJ62: =AJ28 -> 0
AA63: Statlig skatt | AB63: Indirekt skatt | AE63: =IF(B5="Praktik",(X24-X20),(AC24-AC20)) -> 1478.4 | AM63: Tid i arbetslöshet
AA64: Jobbskatteavdrag | AE64: =SUM(AC13,AC14)/12 -> 0 | AM64: <6 mån | AN64: 3
AA65: Etableringsersättning | AE65: =SUM(AJ56,AN89)*(-1) -> 0 | AM65: 6-11 mån | AN65: 9
AA66: A-kassa | AE66: =SUM(AJ58,AN91)*(-1) -> 0 | AM66: 12-23 mån | AN66: 15
AA67: Aktivitetsstöd | AE67: =AN71-AQ71 -> 0 | AM67: 24- mån | AN67: 24
AA68: Utvecklingsersättning | AE68: =(AN72-AQ72) -> 0
AA69: Bostadsbidrag | AE69: =AN73-AQ73 -> 0
AA70: Försörjningsstöd | AE70: =AN74-AQ74 -> 0 | AM70: Transfereringar innan | AN70: SEK | AP70: Transfereringar efter | AQ70: SEK
AA71: Arbetsmarknadsstöd | AE71: =AN75-AQ75 -> 0 | AM71: =AM9 -> Etableringsersättning | AN71: 0 | AP71: =AP9 -> Etableringsersättning | AQ71: 0
AA72: Bonus | AC72: =AN76-AQ76 -> 0 | AM72: A-kassa | AN72: 0 | AP72: =AP10 -> A-kassa | AQ72: 0
AA73: Upphandlingskostnad | AB73: Arbetsmarknadsstöd | AE73: =SUM(U21) -> -3300 | AM73: Aktivitetsstöd | AN73: 0 | AP73: =AP11 -> Aktivitetsstöd | AQ73: 0
AA74: Upphandlingskostnad | AC74: =IF(B3="Kommunal",O11,0) -> 0 | AD74: =IF(B3="Regional",O11,0) -> 0 | AE74: =IF(B3="Statlig",O11,0) -> 0 | AM74: Utvecklingsersättning | AN74: 3652 | AP74: =AP12 -> Utvecklingsersättning | AQ74: 3652
AA75: Upphandlingskostnad | AE75: =IF(B3="Statlig",(O14-O11),0) -> 0 | AM75: Bostadsbidrag | AN75: 857 | AP75: =AP13 -> Bostadsbidrag | AQ75: 857
AD76: =IF(B3="Regional",(O15-O11),0) -> 0 | AM76: Försörjningsstöd | AN76: 5891 | AP76: =AP14 -> Försörjningsstöd | AQ76: 5891
AB77: Upphandlingskostnad | AC77: =IF(B3="Kommunal",(O13-O11),0) -> -1666.666667 | AM77: Beskattningsbara transfereringar | AN77: =AN15 -> 0 | AP77: Beskattningsbara transfereringar | AQ77: =AQ15 -> 0
AB78: 0 | AC78: =SUM(AC60:AC77) -> -1666.666667 | AD78: =SUM(AD60:AD77) -> 0 | AE78: =SUM(AE60:AE77) -> -1821.6 | AM78: Skattefria transfereringar | AN78: =AN16 -> 10400 | AP78: Skattefria transfereringar | AQ78: =AQ16 -> 10400
AM79: =AM17 -> Totala transfereringar | AN79: =AN17 -> 10400 | AP79: =AP17 -> Totala transfereringar | AQ79: =AQ17 -> 10400
AB83: Transfereringar | AC83: =F14 -> 0
AB84: Lön | AC84: =F8+F11 -> 0
AB85: Skatt | AC85: =F10+F12+F22 -> 0 | AM85: Skatt på transfereringar | AN85: SEK | AP85: Skatt på transfereringar | AQ85: SEK
AB86: Totalt | AC86: =SUM(AC83:AC85) -> 0 | AM86: =AM20 -> Kommunalskatt | AN86: =AN20 -> 0 | AP86: =AP20 -> Kommunalskatt | AQ86: =AQ20 -> 0
AM87: =AM21 -> Regionsskattesats: | AN87: 0 | AP87: =AP21 -> Regionsskattesats: | AQ87: 0
AM88: Public service-avgift | AN88: 0 | AP88: =AP22 -> Public service-avgift | AQ88: 0
AM89: =AM23 -> Statlig skatt: | AN89: =AN23 -> 0 | AP89: =AP23 -> Statlig skatt: | AQ89: =AQ23 -> 0
AM90: =AM24 -> Värnskatt: | AN90: =AN24 -> 0 | AP90: =AP24 -> Värnskatt: | AQ90: =AQ24 -> 0
AM91: Jobbskatteavdrag | AN91: 0 | AP91: =AP25 -> Jobbskatteavdrag | AQ91: 0
AM92: Total | AN92: 0 | AP92: =AP26 -> Total | AQ92: 0
AM94: Avgifter på transfereringar | AN94: SEK | AP94: Avgifter på transfereringar | AQ94: SEK
AM95: =AM28 -> Begravningsavgift: | AN95: =AN28 -> 0 | AP95: =AP28 -> Begravningsavgift: | AQ95: =AQ28 -> 0
AM97: =AM34 -> Totala transfereringar efter skatt | AN97: =AN34 -> 10400 | AP97: =AP34 -> Totala transfereringar efter skatt | AQ97: =AQ34 -> 10400
AM102: =AJ62-AN97 -> -10400

Sheet Tabeller
B3: Skatter & avgifter | C3: Procent | F3: Tidigare bruttolön | G3: Dag 1-100 | H3: 101-200 dagar | I3: 201 -300 dagar | K3: Ålder | L3: Bidrag | M3: Ersättningsnivå | O3: Ålder (antal år) | P3: Tid i arbetslöshet (månader) | Q3: Ersättning (arbetsgivaravgifter)
B4: Kommunalskatt* | C4: 0.207 | F4: < 25 025 | G4: 80% av tidigare lön | H4: 80 %, max 760 kr | I4: 70% av tidigare lön, max 760 kr | K4: Över 25 år | L4: Aktivitetsstöd | M4: 223 kr per dag | O4: 20-25 | P4: 6-23 | Q4: 1
B5: Regionsskattesats* | C5: 0.115 | F5: > 25 025 | G5: 80% av tidigare lön, max 910 | H5: 80 % av tidigare lön, max 760 | I5: 70% av tidigare lön, max 760 kr | K5: 18-24 år | L5: Utvecklingsersättning | M5: 162 kr per dag | O5: 20-25 | P5: 24-35 | Q5: 2
B6: TV-skatt | C6: 0.01 | O6: 20-25 | P6: 36- | Q6: 2.5
B7: Statlig skatt | C7: 0.2 | F7: Tidigare bruttolön | G7: Dag 1-100 | H7: 101-200 dagar | I7: 201 -300 dagar | O7: 26-65 | P7: 12-23 | Q7: 1
B8: Värnskatt | F8: < 25 025 | G8: 80% av tidigare lön | H8: 80 %, max 1 000 kr | I8: 70% av tidigare lön, max 1 000 kr | O8: 26-65 | P8: 24-35 | Q8: 2
B9: Begravningsavgift* | C9: 0.002 | F9: > 25 025 | G9: 80% av tidigare lön, max 1 200 kr | H9: 80 % av tidigare lön, max 1 000 kr | I9: 70% av tidigare lön, max 1 000 kr | O9: 26-65 | P9: 36- | Q9: 2.5
B10: Not: Medelskattesatsen är ett viktat medelvärde för samtliga kommuner där skatteunderlaget har använts som vägningstal. Källa: Skatteverket och Statistiska Centralbyrån
E12: grundersättning | F12: 356 | G12: 510

Sheet Anställning med ersättning
D1: Nystartsjobb | F1: Källa: Arbetsförmedlingen | J1: Introduktionsjobb | P1: Lönebidrag | T1: Yrkesintroduktion
A2: Nyanländ (Ja=1, Nej=0) | B2: Ålder (antal år) | C2: Arbetslöshetstid (Antal månader) | D2: Ersättningskvot (av månadslön) | E2: Ersättningskvot (av lönekostnad) | F2: Ersättningsmax (heltid) | G2: Ersättning (arbetsgivaravgifter) | H2: Max bruttolön | J2: Ersättningskvot (av månadslön) | K2: Ersättningskvot (av lönekostnad) | L2: Ersättningsmax (heltid) | M2: Ersättning för handledning | N2: Max bruttolön | P2: Lönekostnad*arbetsförmåga | Q2: Övrig ersättning - Utvecklingsbidrag | T2: Ersättning (arbetsgivaravgifter) | U2: Max ersättning | V2: Max bruttolön (efter avdrag av handledning) | W2: Övrig ersättning - Handledning (115 per dag)
A3: Ja | B3: 20-25 | C3: 6-23 | D3: 0.7855 | F3: 16128.93333 | G3: 2.5 | H3: 20000 | J3: 1.05135 | K3: 0.8 | L3: 21587.92533 | M3: 2000 | N3: 20000 | P3: - | Q3: 2800 | T3: 1 | U3: 6451.573333 | V3: 18750 | W3: =115*21 -> 2415
A4: Ja | B4: 20-25 | C4: 24-35 | D4: 0.7855 | F4: 16128.93333 | G4: 2.5 | H4: 20000
A5: Ja | B5: 20-25 | C5: 36- | D5: 0.7855 | F5: 16128.93333 | G5: 2.5 | H5: 20000
A6: Ja | B6: 26-65 | C6: 12-23 | D6: 0.7855 | F6: 16128.93333 | G6: 2.5 | H6: 20000
A7: Ja | B7: 26-65 | C7: 24-35 | D7: 0.7855 | F7: 16128.93333 | G7: 2.5 | H7: 20000
A8: Ja | B8: 26-65 | C8: 36- | D8: 0.7855 | F8: 16128.93333 | G8: 2.5 | H8: 20000
A9: Nej | B9: 20-25 | C9: 6-23 | D9: 0.3142 | F9: 6451.573333 | G9: 1 | H9: 20000
A10: Nej | B10: 20-25 | C10: 24-35 | D10: 0.6284 | F10: 12903.14667 | G10: 2 | H10: 20000
A11: Nej | B11: 20-25 | C11: 36- | D11: 0.7855 | F11: 16128.93333 | G11: 2.5 | H11: 20000 | T11: Du som arbetsgivare
A12: Nej | B12: 26-65 | C12: 12-23 | D12: 0.3142 | F12: 6451.573333 | G12: 1 | H12: 20000 | T12: betalar för den arbetade tiden.
A13: Nej | B13: 26-65 | C13: 24-35 | D13: 0.6284 | F13: 12903.14667 | G13: 2 | H13: 20000 | J13: Anställ den som | T13: står för handledningen eller utbildningen.
A14: Nej | B14: 26-65 | C14: 36- | D14: 0.7855 | F14: 16128.93333 | G14: 2.5 | H14: 20000 | J14: deltar i jobb- och utvecklingsgarantin eller | T14: tar fram en handlednings- eller utbildningsplan.
J15: har fyllt 20 år och som deltagit i Jobbgarantin för ungdomar i minst 200 ersättningsdagar eller | T15: behöver ett kollektivavtal för yrkesintroduktion eller ett hängavtal till ett sådant.
B16: Du som arbetsgivare | J16: har fyllt 20 år och är nyanländ. | T16: Anställ den som
B17: betalar för den arbetade tiden. | J17: Om anställningen | T17: är 15-24 år och saknar relevanta yrkeskunskaper.
B18: står för handledningen eller utbildningen. | J18: Stödet gäller för anställning som på hel- eller deltid, tillsvidare eller tidsbegränsat. | T18: är 15-24 år och har varit utan arbete i mer än 3 månader.
B19: tar fram en handlednings- eller utbildningsplan. | T19: är 25 år eller äldre och är nyanländ som har fått uppehållstillstånd de senaste 36 månaderna.
B20: behöver ett kollektivavtal för yrkesintroduktion eller ett hängavtal till ett sådant. | T20: är 25 år eller äldre som är långtidsarbetslös.
B21: Anställ den som | T21: Om anställningen
B22: är 15-24 år och saknar relevanta yrkeskunskaper. | J22: Vem räknas som nyanländ? | T22: Anställ på hel- eller deltid, minst 75 procent och 6 månader.
B23: är 15-24 år och har varit utan arbete i mer än 3 månader. | J23: Har fått uppehållstillstånd inom de senaste 36 månaderna. | T23: Anställningen ska innehålla minst 15 procent handledning eller utbildning.
B24: är 25 år eller äldre och är nyanländ som har fått uppehållstillstånd de senaste 36 månaderna. | J24: Har ett uppehållskort och är familjemedlem till en EU/EES-medborgare.
B25: är 25 år eller äldre som är långtidsarbetslös. | J25: Deltar i arbetsmarknadspolitik insats inom lagen om etableringsinsatser för vissa nyanlända invandrare.
B26: Om anställningen | J26: Är arbetslös och någon gång under de senaste 12 månaderna varit anvisad till programmet för etableringsinsatser för vissa nyanlända invandrare.
B27: Anställ på hel- eller deltid, minst 75 procent och 6 månader. | J27: Har fyllt 20 år.
B28: Anställningen ska innehålla minst 15 procent handledning eller utbildning. | J28: Är inskriven på Arbetsförmedlingen.

Sheet Skatter
C2: GRUNDAVDRAG 2021 | F2: JOBBSKATTEAVDRAG 2021
B3: Fast. ink från | C3: Fast. ink till | D3: Grundavdrag | F3: Inkomst | G3: Jobbskatteavdrag
B4: 0 | C4: 20100 | D4: 0 | F4: 100000 | G4: 0.1
B5: 20200 | C5: 47400 | D5: 20200 | F5: 150000 | G5: 0.091
B6: 47500 | C6: 47900 | D6: 20300 | F6: 200000 | G6: 0.087
B7: 48000 | C7: 48400 | D7: 20400 | F7: 250000 | G7: 0.084
B8: 48500 | C8: 48900 | D8: 20500 | F8: 300000 | G8: 0.082
B9: 49000 | C9: 49400 | D9: 20600 | F9: 350000 | G9: 0.081
B10: 49500 | C10: 49900 | D10: 20700 | F10: 400000 | G10: 0.076
B11: 50000 | C11: 50400 | D11: 20800 | F11: 500000 | G11: 0.06
B12: 50500 | C12: 50900 | D12: 20900 | F12: 600000 | G12: 0.05
B13: 51000 | C13: 51400 | D13: 21000 | F13: 700000 | G13: 0.041
B14: 51500 | C14: 51900 | D14: 21100 | F14: 900000 | G14: 0.025
B15: 52000 | C15: 52400 | D15: 21200 | F15: 1100000 | G15: 0.015
B16: 52500 | C16: 52900 | D16: 21300 | F16: 1300000 | G16: 0.008
B17: 53000 | C17: 53400 | D17: 21400 | F17: 1500000 | G17: 0.003
B18: 53500 | C18: 53900 | D18: 21500
B19: 54000 | C19: 54400 | D19: 21600
B20: 54500 | C20: 54900 | D20: 21700
B21: 55000 | C21: 55400 | D21: 21800
B22: 55500 | C22: 55900 | D22: 21900
B23: 56000 | C23: 56400 | D23: 22000
B24: 56500 | C24: 56900 | D24: 22100
B25: 57000 | C25: 57400 | D25: 22200
B26: 57500 | C26: 57900 | D26: 22300
B27: 58000 | C27: 58400 | D27: 22400
B28: 58500 | C28: 58900 | D28: 22500
B29: 59000 | C29: 59400 | D29: 22600
B30: 59500 | C30: 59900 | D30: 22700
B31: 60000 | C31: 60400 | D31: 22800
B32: 60500 | C32: 60900 | D32: 22900
B33: 61000 | C33: 61400 | D33: 23000
B34: 61500 | C34: 61900 | D34: 23100
B35: 62000 | C35: 62400 | D35: 23200
B36: 62500 | C36: 62900 | D36: 23300
B37: 63000 | C37: 63400 | D37: 23400
B38: 63500 | C38: 63900 | D38: 23500
B39: 64000 | C39: 64400 | D39: 23600
B40: 64500 | C40: 64900 | D40: 23700
B41: 65000 | C41: 65400 | D41: 23800
B42: 65500 | C42: 65900 | D42: 23900
B43: 66000 | C43: 66400 | D43: 24000
B44: 66500 | C44: 66900 | D44: 24100
B45: 67000 | C45: 67400 | D45: 24200
B46: 67500 | C46: 67900 | D46: 24300
B47: 68000 | C47: 68400 | D47: 24400
B48: 68500 | C48: 68900 | D48: 24500
B49: 69000 | C49: 69400 | D49: 24600
B50: 69500 | C50: 69900 | D50: 24700
B51: 70000 | C51: 70400 | D51: 24800
B52: 70500 | C52: 70900 | D52: 24900
B53: 71000 | C53: 71400 | D53: 25000
B54: 71500 | C54: 71900 | D54: 25100
B55: 72000 | C55: 72400 | D55: 25200
B56: 72500 | C56: 72900 | D56: 25300
B57: 73000 | C57: 73400 | D57: 25400
B58: 73500 | C58: 73900 | D58: 25500
B59: 74000 | C59: 74400 | D59: 25600
B60: 74500 | C60: 74900 | D60: 25700
B61: 75000 | C61: 75400 | D61: 25800
B62: 75500 | C62: 75900 | D62: 25900
B63: 76000 | C63: 76400 | D63: 26000
B64: 76500 | C64: 76900 | D64: 26100
B65: 77000 | C65: 77400 | D65: 26200
B66: 77500 | C66: 77900 | D66: 26300
B67: 78000 | C67: 78400 | D67: 26400
B68: 78500 | C68: 78900 | D68: 26500
B69: 79000 | C69: 79400 | D69: 26600
B70: 79500 | C70: 79900 | D70: 26700
B71: 80000 | C71: 80400 | D71: 26800
B72: 80500 | C72: 80900 | D72: 26900
B73: 81000 | C73: 81400 | D73: 27000
B74: 81500 | C74: 81900 | D74: 27100
B75: 82000 | C75: 82400 | D75: 27200
B76: 82500 | C76: 82900 | D76: 27300
B77: 83000 | C77: 83400 | D77: 27400
B78: 83500 | C78: 83900 | D78: 27500
B79: 84000 | C79: 84400 | D79: 27600
B80: 84500 | C80: 84900 | D80: 27700
B81: 85000 | C81: 85400 | D81: 27800
B82: 85500 | C82: 85900 | D82: 27900
B83: 86000 | C83: 86400 | D83: 28000
B84: 86500 | C84: 86900 | D84: 28100
B85: 87000 | C85: 87400 | D85: 28200
B86: 87500 | C86: 87900 | D86: 28300
B87: 88000 | C87: 88400 | D87: 28400
B88: 88500 | C88: 88900 | D88: 28500
B89: 89000 | C89: 89400 | D89: 28600
B90: 89500 | C90: 89900 | D90: 28700
B91: 90000 | C91: 90400 | D91: 28800
B92: 90500 | C92: 90900 | D92: 28900
B93: 91000 | C93: 91400 | D93: 29000
B94: 91500 | C94: 91900 | D94: 29100
B95: 92000 | C95: 92400 | D95: 29200
B96: 92500 | C96: 92900 | D96: 29300
B97: 93000 | C97: 93400 | D97: 29400
B98: 93500 | C98: 93900 | D98: 29500
B99: 94000 | C99: 94400 | D99: 29600
B100: 94500 | C100: 94900 | D100: 29700
B101: 95000 | C101: 95400 | D101: 29800
B102: 95500 | C102: 95900 | D102: 29900
B103: 96000 | C103: 96400 | D103: 30000
B104: 96500 | C104: 96900 | D104: 30100
B105: 97000 | C105: 97400 | D105: 30200
B106: 97500 | C106: 97900 | D106: 30300
B107: 98000 | C107: 98400 | D107: 30400
B108: 98500 | C108: 98900 | D108: 30500
B109: 99000 | C109: 99400 | D109: 30600
B110: 99500 | C110: 99900 | D110: 30700
B111: 100000 | C111: 100400 | D111: 30800
B112: 100500 | C112: 100900 | D112: 30900
B113: 101000 | C113: 101400 | D113: 31000
B114: 101500 | C114: 101900 | D114: 31100
B115: 102000 | C115: 102400 | D115: 31200
B116: 102500 | C116: 102900 | D116: 31300
B117: 103000 | C117: 103400 | D117: 31400
B118: 103500 | C118: 103900 | D118: 31500
B119: 104000 | C119: 104400 | D119: 31600
B120: 104500 | C120: 104900 | D120: 31700
B121: 105000 | C121: 105400 | D121: 31800
B122: 105500 | C122: 105900 | D122: 31900
B123: 106000 | C123: 106400 | D123: 32000
B124: 106500 | C124: 106900 | D124: 32100
B125: 107000 | C125: 107400 | D125: 32200
B126: 107500 | C126: 107900 | D126: 32300
B127: 108000 | C127: 108400 | D127: 32400
B128: 108500 | C128: 108900 | D128: 32500
B129: 109000 | C129: 109400 | D129: 32600
B130: 109500 | C130: 109900 | D130: 32700
B131: 110000 | C131: 110400 | D131: 32800
B132: 110500 | C132: 110900 | D132: 32900
B133: 111000 | C133: 111400 | D133: 33000
B134: 111500 | C134: 111900 | D134: 33100
B135: 112000 | C135: 112400 | D135: 33200
B136: 112500 | C136: 112900 | D136: 33300
B137: 113000 | C137: 113400 | D137: 33400
B138: 113500 | C138: 113900 | D138: 33500
B139: 114000 | C139: 114400 | D139: 33600
B140: 114500 | C140: 114900 | D140: 33700
B141: 115000 | C141: 115400 | D141: 33800
B142: 115500 | C142: 115900 | D142: 33900
B143: 116000 | C143: 116400 | D143: 34000
B144: 116500 | C144: 116900 | D144: 34100
B145: 117000 | C145: 117400 | D145: 34200
B146: 117500 | C146: 117900 | D146: 34300
B147: 118000 | C147: 118400 | D147: 34400
B148: 118500 | C148: 118900 | D148: 34500
B149: 119000 | C149: 119400 | D149: 34600
B150: 119500 | C150: 119900 | D150: 34700
B151: 120000 | C151: 120400 | D151: 34800
B152: 120500 | C152: 120900 | D152: 34900
B153: 121000 | C153: 121400 | D153: 35000
B154: 121500 | C154: 121900 | D154: 35100
B155: 122000 | C155: 122400 | D155: 35200
B156: 122500 | C156: 122900 | D156: 35300
B157: 123000 | C157: 123400 | D157: 35400
B158: 123500 | C158: 123900 | D158: 35500
B159: 124000 | C159: 124400 | D159: 35600
B160: 124500 | C160: 124900 | D160: 35700
B161: 125000 | C161: 125400 | D161: 35800
B162: 125500 | C162: 125900 | D162: 35900
B163: 126000 | C163: 126400 | D163: 36000
B164: 126500 | C164: 126900 | D164: 36100
B165: 127000 | C165: 127400 | D165: 36200
B166: 127500 | C166: 127900 | D166: 36300
B167: 128000 | C167: 128400 | D167: 36400
B168: 128500 | C168: 128900 | D168: 36500
B169: 129000 | C169: 129400 | D169: 36600
B170: 129500 | C170: 148500 | D170: 36700
B171: 148600 | C171: 149500 | D171: 36600
B172: 149600 | C172: 150500 | D172: 36500
B173: 150600 | C173: 151500 | D173: 36400
B174: 151600 | C174: 152500 | D174: 36300
B175: 152600 | C175: 153500 | D175: 36200
B176: 153600 | C176: 154500 | D176: 36100
B177: 154600 | C177: 155500 | D177: 36000
B178: 155600 | C178: 156500 | D178: 35900
B179: 156600 | C179: 157500 | D179: 35800
B180: 157600 | C180: 158500 | D180: 35700
B181: 158600 | C181: 159500 | D181: 35600
B182: 159600 | C182: 160500 | D182: 35500
B183: 160600 | C183: 161500 | D183: 35400
B184: 161600 | C184: 162500 | D184: 35300
B185: 162600 | C185: 163500 | D185: 35200
B186: 163600 | C186: 164500 | D186: 35100
B187: 164600 | C187: 165500 | D187: 35000
B188: 165600 | C188: 166500 | D188: 34900
B189: 166600 | C189: 167500 | D189: 34800
B190: 167600 | C190: 168500 | D190: 34700
B191: 168600 | C191: 169500 | D191: 34600
B192: 169600 | C192: 170500 | D192: 34500
B193: 170600 | C193: 171500 | D193: 34400
B194: 171600 | C194: 172500 | D194: 34300
B195: 172600 | C195: 173500 | D195: 34200
B196: 173600 | C196: 174500 | D196: 34100
B197: 174600 | C197: 175500 | D197: 34000
B198: 175600 | C198: 176500 | D198: 33900
B199: 176600 | C199: 177500 | D199: 33800
B200: 177600 | C200: 178500 | D200: 33700
B201: 178600 | C201: 179500 | D201: 33600
... 196 more rows

Sheet Listor
A2: Organisation | B2: Sysselsättningskrav | C2: Anställningsstöd | D2: Ålder | E2: Tid i arbetslöshet | F2: Nyanländ | G2: A-kassa
A4: Kommunal | B4: Anställning | C4: Introduktionsjobb | D4: 20-23 | E4: <6 mån | F4: Ja | G4: Ja
A5: Statlig | B5: Lärling | C5: Nystartsjobb | D5: 24-25 | E5: 6-11 mån
A6: Regional | B6: Praktik | C6: Yrkesintroduktion | D6: 26-65 | E6: 12-23 mån
E7: 24-35 mån
E8: 36- mån
